bitfinex/quotes_BTCUSD_20241023
["timestamp","ask_amount","ask_price","bid_price","bid_amount"]
[1729701630318,0.16560793,66002.0,66000.0,0.0001]
[1729701630319,0.151512,66001.0,66000.0,0.0001]
[1729701630576,0.33867213,66001.0,66000.0,0.0001]
[1729701631014,0.33867213,66001.0,66000.0,0.0051]
[1729701632354,0.18816832,66001.0,66000.0,0.0051]
[1729701632561,0.03665632,66001.0,66000.0,0.0051]
[1729701633038,0.18816832,66001.0,66000.0,0.006746]
[1729701633244,0.03665632,66001.0,66000.0,0.006746]
[1729701633457,0.23665632,66001.0,66000.0,0.006746]
[1729701633879,0.2,66001.0,66000.0,0.26490922]
[1729701634764,0.2,66001.0,66000.0,0.29228886]
[1729701634988,0.2,66001.0,66000.0,0.38968886]
[1729701634989,0.2141208,66001.0,66000.0,0.38968886]
[1729701637003,0.2141208,66001.0,66000.0,0.36230922]
[1729701639032,0.2141208,66001.0,66000.0,0.76182803]
[1729701639259,0.0219,66001.0,66000.0,0.76382803]
[1729701639474,0.22659637,66014.0,66013.0,0.005]
[1729701639725,0.24073416,66014.0,66013.0,0.49616703]
[1729701640156,0.01413779,66014.0,66013.0,0.49616703]
[1729701640786,0.01413779,66014.0,66013.0,0.64765203]
[1729701640995,0.22659637,66023.0,66019.0,0.005]
[1729701641651,0.151452,66028.0,66019.0,0.005]
[1729701641867,0.151456,66026.0,66019.0,0.005]
[1729701642550,0.302872,66035.0,66019.0,0.005]
[1729701642551,0.151451,66028.0,66019.0,0.005]
[1729701642762,0.151449,66029.0,66019.0,0.005]
[1729701642970,0.01496647,66020.0,66019.0,0.00802907]
[1729701643173,0.01496647,66020.0,66019.0,0.005]
[1729701644749,0.01496647,66020.0,66019.0,0.0080291]
[1729701644946,0.01496647,66020.0,66019.0,0.005]
[1729701645177,0.01496647,66020.0,66019.0,0.05547596]
[1729701645404,0.01495884,66020.0,66019.0,0.05547596]
[1729701646687,0.01495884,66020.0,66019.0,0.005]
[1729701647403,0.000823,66020.0,66019.0,0.005]
[1729701649135,0.01495884,66020.0,66019.0,0.005]
[1729701651983,0.01495467,66020.0,66019.0,0.005]
[1729701652837,0.01495467,66020.0,66019.0,0.23462551]
[1729701653073,0.01495467,66020.0,66019.0,0.00802906]
[1729701655028,0.01495467,66020.0,66019.0,0.005]
[1729701657026,0.01495467,66020.0,66019.0,0.0231332]
[1729701658444,0.01495467,66020.0,66019.0,0.005]
[1729701659195,0.01495996,66020.0,66019.0,0.005]
[1729701659624,0.31789896,66020.0,66019.0,0.005]
[1729701659828,0.01495996,66020.0,66019.0,0.005]
[1729701660881,0.16642896,66020.0,66019.0,0.005]
[1729701661501,0.16643888,66020.0,66019.0,0.005]
[1729701661745,0.01496988,66020.0,66019.0,0.005]
[1729701662160,0.16643888,66020.0,66019.0,0.005]
[1729701664214,0.151471,66019.0,66018.0,0.005]
[1729701664420,0.16561788,66019.0,66018.0,0.005]
[1729701665050,0.151489,66011.0,66010.0,0.005]
[1729701665260,0.302985,66010.0,66008.0,0.005]
[1729701665470,0.151494,66009.0,66008.0,0.005]
[1729701665674,0.16564088,66009.0,66008.0,0.005]
[1729701667622,0.01414688,66009.0,66008.0,0.005]
[1729701668254,0.01414688,66009.0,66008.0,0.00802965]
[1729701668672,0.22659637,66017.0,66015.0,0.005]
[1729701668673,0.15148,66016.0,66015.0,0.005]
[1729701668881,0.16565366,66016.0,66015.0,0.005]
[1729701669090,0.16565166,66016.0,66015.0,0.005]
[1729701669961,0.31713066,66016.0,66012.0,0.005]
[1729701670175,0.302979,66011.0,66003.0,0.005]
[1729701670398,0.302979,66011.0,66000.0,0.001746]
[1729701670399,0.15151,66002.0,66001.0,0.006646]
[1729701670612,0.16568366,66002.0,66001.0,0.001646]
[1729701671473,0.16568366,66002.0,66001.0,0.006646]
[1729701671711,0.16568366,66002.0,66001.0,0.001646]
[1729701671712,0.33918747,66002.0,66001.0,0.001646]
[1729701672126,0.32501381,66002.0,66001.0,0.001646]
[1729701672313,0.51551057,66002.0,66001.0,0.001646]
[1729701673407,0.73626473,66002.0,66001.0,0.001646]
[1729701673635,0.74126473,66002.0,66001.0,0.001646]
[1729701673859,1.11169675,66002.0,66001.0,0.001646]
[1729701674325,1.10969675,66002.0,66001.0,0.001646]
[1729701674533,0.93336473,66002.0,66001.0,0.001646]
[1729701674762,1.10969675,66002.0,66001.0,0.001646]
[1729701674980,0.93536473,66002.0,66001.0,0.001646]
[1729701675189,0.93823335,66002.0,66001.0,0.001646]
[1729701675825,1.11656537,66002.0,66001.0,0.001646]
[1729701676496,0.96084819,66002.0,66001.0,0.001646]
[1729701676703,1.13918021,66002.0,66001.0,0.001646]
[1729701677148,0.81339403,66002.0,66001.0,0.001646]
[1729701677573,0.99672605,66002.0,66001.0,0.001646]
[1729701677807,0.286517,65999.0,65998.0,0.000857]
[1729701678017,0.47380039,65999.0,65998.0,0.000857]
[1729701678699,0.51896522,65999.0,65998.0,0.000857]
[1729701678929,0.66946903,65999.0,65998.0,0.000857]
[1729701679145,0.163526,65995.0,65978.0,0.000857]
[1729701679361,0.71456169,65995.0,65978.0,0.000857]
[1729701679578,0.7286866,65995.0,65978.0,0.000857]
[1729701680436,0.7286866,65995.0,65994.0,0.001642]
[1729701681067,0.7266866,65995.0,65994.0,0.001642]
[1729701681289,0.87719041,65995.0,65994.0,0.001642]
[1729701681520,0.85459055,65995.0,65994.0,0.001642]
[1729701682377,0.70408674,65995.0,65994.0,0.001642]
[1729701682595,0.69468293,65995.0,65994.0,0.001642]
[1729701682839,0.70878662,65995.0,65994.0,0.001642]
[1729701686184,0.69468293,65995.0,65994.0,0.001642]
[1729701686415,0.70878451,65995.0,65994.0,0.001642]
[1729701686846,0.84928832,65995.0,65994.0,0.001642]
[1729701687070,0.31613139,65995.0,65994.0,0.001642]
[1729701687277,0.01410158,65995.0,65994.0,0.001642]
[1729701687490,0.01410158,65995.0,65994.0,0.17797402]
[1729701687698,0.31714858,65997.0,65994.0,0.17797402]
[1729701687916,0.01410158,65997.0,65994.0,0.17797402]
[1729701688131,0.303015,66004.0,65997.0,0.005]
[1729701688132,0.24069795,66003.0,65997.0,0.005]
[1729701688334,0.01410158,66002.0,66000.0,0.17633202]
[1729701688560,0.01410158,66001.0,65999.0,0.005]
[1729701688768,0.01410158,66000.0,65999.0,0.005]
[1729701688977,0.16561658,66000.0,65999.0,0.005]
[1729701689680,0.2513403,66000.0,65999.0,0.005]
[1729701689907,0.26545591,66000.0,65999.0,0.005]
[1729701690331,0.16563061,66000.0,65999.0,0.005]
[1729701690533,0.18863061,66000.0,65999.0,0.005]
[1729701690687,0.477552,65999.0,65998.0,0.005]
[1729701690940,0.49166761,65999.0,65998.0,0.005]
[1729701691119,0.34015061,65999.0,65998.0,0.005]
[1729701691321,0.34015061,65999.0,65994.0,0.001642]
[1729701691322,0.34015061,65999.0,65997.0,0.005]
[1729701691472,0.31715861,65998.0,65997.0,0.005]
[1729701691676,0.46867761,65998.0,65997.0,0.005]
[1729701692558,0.57853207,65998.0,65997.0,0.005]
[1729701692750,0.46867761,65998.0,65997.0,0.005]
[1729701693795,0.16563461,65998.0,65997.0,0.005]
[1729701694450,0.01411561,65998.0,65997.0,0.005]
[1729701694653,0.16563461,65998.0,65997.0,0.005]
[1729701695405,0.33913842,65998.0,65997.0,0.005]
[1729701695607,0.4867022,65998.0,65997.0,0.005]
[1729701696654,0.16563461,65998.0,65997.0,0.005]
[1729701699173,0.16563461,65998.0,65994.0,0.001642]
[1729701699174,0.174526,65995.0,65994.0,0.001642]
[1729701699378,0.33914542,65995.0,65994.0,0.001642]
[1729701700182,0.3391912,65995.0,65994.0,0.001642]
[1729701700502,0.48263137,65995.0,65994.0,0.001642]
[1729701701462,0.3391912,65995.0,65994.0,0.001642]
[1729701703586,0.33919747,65995.0,65994.0,0.001642]
[1729701706505,0.174526,65995.0,65994.0,0.001642]
[1729701707114,0.18869253,65995.0,65994.0,0.001642]
[1729701707336,0.16569253,65995.0,65994.0,0.006642]
[1729701708344,0.16551017,65995.0,65994.0,0.006642]
[1729701710980,0.18851017,65995.0,65994.0,0.006642]
[1729701712034,0.18851925,65995.0,65994.0,0.006642]
[1729701714391,0.18851925,65995.0,65994.0,0.001642]
[1729701714392,0.29836528,65995.0,65994.0,0.001642]
[1729701714590,0.29836528,65995.0,65994.0,0.006642]
[1729701714799,0.29836528,65995.0,65994.0,0.001642]
[1729701715054,0.29836528,65995.0,65994.0,0.006642]
[1729701715514,0.18851925,65995.0,65994.0,0.001642]
[1729701716686,0.33902306,65995.0,65994.0,0.006642]
[1729701719792,0.33902306,65995.0,65994.0,0.001642]
[1729701720124,0.33902306,65995.0,65994.0,0.006642]
[1729701720802,0.33902306,65995.0,65994.0,0.001642]
[1729701721223,0.46441947,65995.0,65994.0,0.001642]
[1729701721768,0.45024386,65995.0,65994.0,0.001642]
[1729701721971,0.46445043,65995.0,65994.0,0.001642]
[1729701722375,0.46445043,65995.0,65994.0,0.006642]
[1729701722669,0.46445043,65995.0,65994.0,0.001642]
[1729701723145,0.68609525,65995.0,65994.0,0.001642]
[1729701724558,0.38436682,65995.0,65994.0,0.001642]
[1729701724806,0.18855021,65995.0,65994.0,0.001642]
[1729701725532,0.17434364,65995.0,65994.0,0.001642]
[1729701725770,0.18855254,65995.0,65994.0,0.001642]
[1729701726251,0.0372089,65995.0,65994.0,0.006642]
[1729701726522,0.0142089,65995.0,65994.0,0.006642]
[1729701728342,0.0142089,65995.0,65994.0,0.16120047]
[1729701728574,0.0142089,65995.0,65994.0,0.00967247]
[1729701728776,0.0142089,65995.0,65994.0,0.16120047]
[1729701729296,0.000823,65998.0,65997.0,0.005]
[1729701729540,0.01501946,65998.0,65997.0,0.18436211]
[1729701730330,0.16653846,65998.0,65997.0,0.005]
[1729701730514,0.16653846,65998.0,65994.0,0.006642]
[1729701730515,0.174526,65995.0,65994.0,0.006642]
[1729701730752,0.18872246,65995.0,65994.0,0.006642]
[1729701730986,0.18872246,65995.0,65994.0,0.001642]
[1729701731453,0.18872246,65995.0,65994.0,0.006642]
[1729701731678,0.18872246,65995.0,65994.0,0.001642]
[1729701731907,0.000823,65998.0,65994.0,0.001642]
[1729701732169,0.000823,65998.0,65995.0,0.005]
[1729701732425,0.000823,65998.0,65997.0,0.005]
[1729701732669,0.000823,65998.0,65997.0,0.1779]
[1729701732913,0.01501328,65998.0,65997.0,0.1809301]
[1729701733651,0.01501328,65998.0,65997.0,0.1779]
[1729701737434,0.01501328,65998.0,65997.0,0.005]
[1729701737706,0.16653228,65998.0,65997.0,0.005]
[1729701738453,0.18953228,65998.0,65997.0,0.005]
[1729701739637,0.18773259,65998.0,65997.0,0.005]
[1729701740395,0.174526,65995.0,65994.0,0.001642]
[1729701740669,0.58416183,65995.0,65994.0,0.001642]
[1729701740950,0.93566564,65995.0,65994.0,0.001642]
[1729701741198,0.93566564,65995.0,65978.0,0.000857]
[1729701741199,0.32787902,65986.0,65985.0,0.005]
[1729701741439,0.50138283,65986.0,65985.0,0.005]
[1729701741692,0.50138283,65986.0,65983.0,0.23159637]
[1729701741693,0.151551,65984.0,65983.0,0.23159637]
[1729701741926,0.151551,65984.0,65983.0,0.005]
[1729701741927,0.32505481,65984.0,65983.0,0.005]
[1729701742401,0.32505481,65984.0,65981.0,0.005]
[1729701742402,0.151556,65982.0,65981.0,0.005]
[1729701742632,0.174556,65982.0,65981.0,0.005]
[1729701744134,0.31562498,65982.0,65981.0,0.005]
[1729701744369,0.31562498,65982.0,65978.0,0.000857]
[1729701744370,0.151563,65979.0,65978.0,0.005857]
[1729701744606,0.32506681,65979.0,65978.0,0.005857]
[1729701747447,0.7279952,65979.0,65978.0,0.000857]
[1729701747673,0.72164731,65979.0,65978.0,0.000857]
[1729701748240,0.54531529,65979.0,65978.0,0.000857]
[1729701749235,0.56797016,65979.0,65978.0,0.000857]
[1729701749718,0.48527016,65979.0,65978.0,0.000857]
[1729701750179,0.34772168,65979.0,65978.0,0.000857]
[1729701751691,0.36186867,65979.0,65978.0,0.000857]
[1729701754534,0.32506681,65979.0,65978.0,0.000857]
[1729701754761,0.36182567,65979.0,65978.0,0.000857]
[1729701756030,0.33920483,65979.0,65978.0,0.000857]
[1729701756760,0.33920483,65979.0,65978.0,0.005857]
[1729701756761,0.16570102,65979.0,65978.0,0.005857]
[1729701756997,0.01413802,65979.0,65978.0,0.005857]
[1729701757455,0.16570102,65979.0,65978.0,0.005857]
[1729701757903,0.18870102,65979.0,65978.0,0.005857]
[1729701758106,0.03713802,65979.0,65978.0,0.005857]
[1729701758345,0.01413802,65979.0,65978.0,0.005857]
[1729701758558,0.303108,65984.0,65980.0,0.005]
[1729701758559,0.023,65982.0,65980.0,0.005]
[1729701758771,0.17456,65981.0,65980.0,0.005]
[1729701759002,0.03713308,65981.0,65980.0,0.005]
[1729701759253,0.01413308,65981.0,65980.0,0.005]
[1729701759453,0.16569108,65981.0,65980.0,0.005]
[1729701761344,0.16569108,65981.0,65978.0,0.000857]
[1729701761599,0.01413308,65980.0,65978.0,0.000857]
[1729701761822,0.17633202,65993.0,65978.0,0.000857]
[1729701761823,0.22659637,65992.0,65980.0,0.1714]
[1729701762047,0.151536,65991.0,65983.0,0.17633202]
[1729701762268,0.01413862,65990.0,65983.0,0.17633202]
[1729701762487,0.01413862,65989.0,65983.0,0.17633202]
[1729701762708,0.01413862,65988.0,65983.0,0.17633202]
[1729701762961,0.01413862,65987.0,65983.0,0.17633202]
[1729701763162,0.01413862,65986.0,65983.0,0.17633202]
[1729701763389,0.01413862,65985.0,65983.0,0.17633202]
[1729701763633,0.000823,65993.0,65985.0,0.151547]
[1729701763840,0.000823,65993.0,65984.0,0.36506252]
[1729701763841,0.24073963,65992.0,65987.0,0.231243]
[1729701764046,0.000823,65993.0,65987.0,0.231243]
[1729701764047,0.01414326,65991.0,65988.0,0.09813049]
[1729701764258,0.000823,65993.0,65989.0,0.005]
[1729701764259,0.01414326,65990.0,65989.0,0.005]
[1729701764898,0.01414326,65990.0,65989.0,0.18133202]
[1729701767291,0.000823,65993.0,65989.0,0.18133202]
[1729701767514,0.000823,65993.0,65992.0,0.17633202]
[1729701768332,0.01497752,65993.0,65992.0,0.17633202]
[1729701768772,0.01497752,65993.0,65989.0,0.005]
[1729701768991,0.01415452,65992.0,65989.0,0.005]
[1729701769197,0.01415452,65991.0,65989.0,0.005]
[1729701769432,0.01415452,65990.0,65989.0,0.005]
[1729701769647,0.000823,65993.0,65989.0,0.005]
[1729701769848,0.01415358,65992.0,65989.0,0.005]
[1729701770084,0.01415358,65991.0,65989.0,0.005]
[1729701770288,0.01415358,65990.0,65989.0,0.005]
[1729701773401,0.000823,65993.0,65989.0,0.005]
[1729701773402,0.000823,65993.0,65992.0,0.166533]
[1729701773609,0.01496679,65993.0,65992.0,0.34286502]
[1729701774054,0.000823,65993.0,65992.0,0.19133202]
[1729701775088,0.000823,65993.0,65992.0,0.18133202]
[1729701775292,0.000823,65993.0,65992.0,0.19133202]
[1729701775706,0.000823,65993.0,65992.0,0.18133202]
[1729701775909,0.000823,65993.0,65992.0,0.19133202]
[1729701776526,0.000823,65993.0,65992.0,0.18133202]
[1729701776964,0.000823,65993.0,65992.0,0.005]
[1729701777171,0.000823,65993.0,65990.0,0.005]
[1729701777376,0.000823,65993.0,65989.0,0.005]
[1729701777581,0.01413391,65992.0,65989.0,0.005]
[1729701777997,0.01413391,65992.0,65988.0,0.005]
[1729701778220,0.000823,65993.0,65989.0,0.005]
[1729701778221,0.01413391,65991.0,65989.0,0.005]
[1729701778427,0.000823,65993.0,65989.0,0.005]
[1729701778428,0.01413391,65990.0,65989.0,0.005]
[1729701778639,0.01413391,65990.0,65987.0,0.0797]
[1729701778640,0.01413391,65990.0,65988.0,0.005]
[1729701778863,0.01413391,65992.0,65988.0,0.005]
[1729701779092,0.01413391,65991.0,65988.0,0.005]
[1729701779290,0.01413391,65990.0,65987.0,0.0847]
[1729701779511,0.01413391,65989.0,65988.0,0.005]
[1729701779716,0.01413391,65989.0,65987.0,0.0797]
[1729701779717,0.01413391,65989.0,65987.0,0.0847]
[1729701779922,0.01413391,65988.0,65987.0,0.0847]
[1729701780161,0.000823,65993.0,65987.0,0.0797]
[1729701780411,0.000823,65993.0,65982.0,0.01465107]
[1729701780412,0.24073452,65992.0,65984.0,0.005]
[1729701780625,0.24073452,65992.0,65983.0,0.01]
[1729701780626,0.01413815,65991.0,65987.0,0.005]
[1729701780843,0.01413815,65990.0,65986.0,0.005]
[1729701781049,0.01413815,65989.0,65986.0,0.005]
[1729701781256,0.000823,65993.0,65987.0,0.005]
[1729701781257,0.01413815,65988.0,65987.0,0.005]
[1729701781467,0.000823,65993.0,65987.0,0.18436256]
[1729701781468,0.01413815,65992.0,65987.0,0.18436256]
[1729701781710,0.000823,65993.0,65991.0,0.17633202]
[1729701781922,0.01414112,65992.0,65991.0,0.17633202]
[1729701782782,0.01414349,65992.0,65991.0,0.18133202]
[1729701782992,0.01414349,65992.0,65991.0,0.41226702]
[1729701783438,0.01414349,65992.0,65991.0,0.84240285]
[1729701783645,0.000823,65993.0,65992.0,0.440333]
[1729701783863,0.000823,65998.0,65997.0,0.59968604]
[1729701784084,0.000823,65998.0,65997.0,0.84348985]
[1729701784544,0.000823,65998.0,65997.0,0.84148985]
[1729701784759,0.000823,65998.0,65997.0,0.84348985]
[1729701787637,0.22659637,66011.0,66010.0,0.017]
[1729701787851,0.24073776,66011.0,66010.0,0.33799581]
[1729701788072,0.0949,66038.0,66017.0,0.156476]
[1729701788073,0.30286,66037.0,66017.0,0.156476]
[1729701788301,0.302864,66037.0,66017.0,0.73594385]
[1729701788520,0.151438,66034.0,66019.0,0.156471]
[1729701788755,0.01413438,66024.0,66019.0,0.30697481]
[1729701788956,0.01413438,66023.0,66019.0,0.43432095]
[1729701789170,0.01413438,66022.0,66019.0,0.43432095]
[1729701789392,0.01413438,66024.0,66019.0,0.43432095]
[1729701789608,0.302864,66037.0,66019.0,0.43432095]
[1729701789609,0.01413438,66023.0,66019.0,0.43432095]
[1729701789816,0.01413438,66024.0,66019.0,0.43432095]
[1729701790021,0.01413438,66023.0,66019.0,0.43432095]
[1729701790260,0.01413438,66024.0,66019.0,0.43432095]
[1729701790472,0.01413438,66023.0,66019.0,0.43432095]
[1729701790675,0.01413438,66024.0,66019.0,0.43432095]
[1729701790891,0.01413438,66023.0,66019.0,0.28284995]
[1729701791097,0.01413438,66024.0,66019.0,0.28284995]
[1729701791322,0.01413438,66023.0,66019.0,0.28284995]
[1729701791529,0.01413438,66022.0,66019.0,0.28284995]
[1729701791761,0.01413438,66024.0,66019.0,0.28284995]
[1729701791974,0.01413438,66023.0,66019.0,0.28284995]
[1729701792319,0.01413438,66022.0,66019.0,0.28284995]
[1729701792615,0.01413438,66021.0,66019.0,0.28284995]
[1729701792823,0.01495738,66020.0,66019.0,0.12734614]
[1729701793032,0.01495738,66020.0,66017.0,0.25263202]
[1729701793241,0.01413438,66019.0,66017.0,0.40813583]
[1729701793451,0.01413438,66019.0,66018.0,0.156473]
[1729701793670,0.000823,66020.0,66018.0,0.10950208]
[1729701793929,0.000823,66020.0,66017.0,0.17633202]
[1729701793930,0.01413438,66019.0,66017.0,0.17633202]
[1729701794138,0.000823,66020.0,66017.0,0.17633202]
[1729701794139,0.01413438,66018.0,66017.0,0.17633202]
[1729701795189,0.01413438,66018.0,66014.0,0.01]
[1729701795393,0.01413438,66017.0,66010.0,0.40792839]
[1729701795604,0.01413438,66016.0,66011.0,0.05694284]
[1729701795830,0.01413438,66015.0,66014.0,0.17633202]
[1729701796483,0.000823,66020.0,66011.0,0.05694284]
[1729701796484,0.151479,66016.0,66011.0,0.05694284]
[1729701796693,0.303764,66020.0,66010.0,0.17633202]
[1729701796694,0.01412153,66015.0,66010.0,0.17633202]
[1729701796902,0.01412153,66014.0,66010.0,0.17633202]
[1729701797112,0.01412153,66013.0,66010.0,0.17633202]
[1729701797346,0.01412153,66012.0,66010.0,0.17633202]
[1729701797560,0.01412153,66011.0,66010.0,0.17633202]
[1729701799667,0.01412153,66011.0,66010.0,0.38922883]
[1729701799937,0.01412153,66011.0,66010.0,0.54072083]
[1729701800120,0.000823,66015.0,66014.0,0.156483]
[1729701800341,0.000823,66015.0,66014.0,0.33281502]
[1729701800546,0.01494758,66015.0,66014.0,0.33281502]
[1729701800966,0.01494758,66015.0,66014.0,0.4173831]
[1729701801825,0.01494758,66015.0,66011.0,0.15050381]
[1729701802034,0.000823,66015.0,66014.0,0.17633202]
[1729701802246,0.01495065,66015.0,66014.0,0.17633202]
[1729701802674,0.01495065,66015.0,66014.0,0.32781502]
[1729701803579,0.01495065,66015.0,66014.0,0.48031883]
[1729701803819,0.01495065,66015.0,66014.0,0.79434475]
[1729701804913,0.01495065,66015.0,66014.0,0.40035794]
[1729701805123,0.01495065,66015.0,66014.0,0.18133202]
[1729701805559,0.03754896,66015.0,66014.0,0.18133202]
[1729701805769,0.03754896,66015.0,66010.0,0.28633202]
[1729701806016,0.03754896,66015.0,66005.0,0.16491335]
[1729701806017,0.26332233,66014.0,66005.0,0.17633202]
[1729701806271,0.03672596,66013.0,66006.0,0.05674721]
[1729701806527,0.03672596,66012.0,66006.0,0.05674721]
[1729701806734,0.03672596,66012.0,66006.0,0.01]
[1729701806953,0.152305,66015.0,66005.0,0.17633202]
[1729701806954,0.03672596,66011.0,66005.0,0.17633202]
[1729701807175,0.02262002,66010.0,66007.0,0.005]
[1729701807429,0.04806959,66009.0,66005.0,0.17633202]
[1729701807756,0.04806959,66008.0,66005.0,0.17633202]
[1729701807840,0.04806959,66008.0,66005.0,0.32783502]
[1729701808065,0.04806959,66007.0,66005.0,0.17633202]
[1729701808270,0.37808037,66014.0,66005.0,0.17633202]
[1729701808271,0.04806959,66006.0,66005.0,0.17633202]
[1729701808513,0.04806959,66006.0,66005.0,0.33783502]
[1729701808743,0.04806959,66006.0,66005.0,0.17633202]
[1729701809215,0.04806959,66006.0,66005.0,0.17797602]
[1729701809944,0.04806959,66006.0,66005.0,0.001644]
[1729701810170,0.04806959,66006.0,66005.0,0.17797602]
[1729701810600,0.04812982,66006.0,66005.0,0.17797602]
[1729701811628,0.04812982,66006.0,66005.0,0.001644]
[1729701816254,0.04812982,66006.0,66005.0,0.00467368]
[1729701816495,0.04812982,66006.0,66005.0,0.001644]
[1729701817705,0.22659637,66013.0,66005.0,0.001644]
[1729701817970,0.01417006,66012.0,66005.0,0.153145]
[1729701818221,0.000823,66015.0,66005.0,0.153145]
[1729701818222,0.04817821,66011.0,66008.0,0.17633202]
[1729701818451,0.000823,66015.0,66008.0,0.17633202]
[1729701818452,0.04817821,66010.0,66008.0,0.17633202]
[1729701818683,0.02550611,66009.0,66008.0,0.17633202]
[1729701820388,0.02550611,66009.0,66005.0,0.001644]
[1729701820599,0.02550611,66008.0,66005.0,0.001644]
[1729701820805,0.02550611,66007.0,66005.0,0.001644]
[1729701820991,0.02550611,66006.0,66005.0,0.001644]
[1729701821209,0.02550923,66006.0,66005.0,0.001644]
[1729701822042,0.02550923,66006.0,66005.0,0.17797602]
[1729701824706,0.152305,66014.0,66005.0,0.17797602]
[1729701824908,0.02552175,66006.0,66005.0,0.17797602]
[1729701825109,0.02552175,66006.0,66005.0,0.32947902]
[1729701825328,0.02552175,66006.0,66005.0,0.21093452]
[1729701828385,0.02552262,66006.0,66005.0,0.36243752]
[1729701828612,0.02552262,66006.0,66005.0,0.21093452]
[1729701829046,0.02552369,66006.0,66005.0,0.21093452]
[1729701832260,0.02553518,66006.0,66005.0,0.21093452]
[1729701832684,0.02553518,66006.0,66005.0,0.17797602]
[1729701832828,0.02553518,66006.0,66005.0,0.001644]
[1729701834633,0.02553518,66006.0,66005.0,0.17797602]
[1729701838065,0.1376315,66014.0,66005.0,0.17797602]
[1729701838335,0.000823,66015.0,66005.0,0.17797602]
[1729701838538,0.152304,66015.0,66006.0,0.05263535]
[1729701838978,0.151486,66013.0,66006.0,0.05263535]
[1729701839208,0.302966,66014.0,66006.0,0.05263535]
[1729701839416,0.151484,66014.0,66006.0,0.05263535]
[1729701839597,0.152304,66015.0,66006.0,0.05263535]
[1729701839800,0.303785,66015.0,66007.0,0.06540762]
[1729701840028,0.15149,66011.0,66005.0,0.001644]
[1729701840439,0.151495,66009.0,66005.0,0.001644]
[1729701840845,0.005823,66015.0,66005.0,0.001644]
[1729701840846,0.023,66014.0,66005.0,0.001644]
[1729701841101,0.151489,66011.0,66005.0,0.001644]
[1729701841342,0.302982,66011.0,66005.0,0.001644]
[1729701841582,0.302975,66012.0,66005.0,0.001644]
[1729701841829,0.151495,66009.0,66005.0,0.001644]
[1729701842219,0.454471,66011.0,66005.0,0.001644]
[1729701843105,0.151492,66010.0,66005.0,0.001644]
[1729701843341,0.302979,66011.0,66005.0,0.001644]
[1729701843560,0.45447,66011.0,66005.0,0.001644]
[1729701843787,0.151496,66009.0,66005.0,0.001644]
[1729701844774,0.302979,66011.0,66005.0,0.001644]
[1729701844775,0.151492,66011.0,66005.0,0.001644]
[1729701845008,0.151495,66009.0,66005.0,0.001644]
[1729701845249,0.151495,66009.0,66006.0,0.0177976]
[1729701845490,0.023,66011.0,66006.0,0.0177976]
[1729701845940,0.151493,66010.0,66006.0,0.0177976]
[1729701846155,0.325981,66011.0,66005.0,0.001644]
[1729701846360,0.151492,66010.0,66005.0,0.001644]
[1729701846972,0.15149,66011.0,66005.0,0.001644]
[1729701847184,0.023,66011.0,66005.0,0.001644]
[1729701847615,0.000822,66014.0,66006.0,0.17936184]
[1729701848244,0.152305,66014.0,66006.0,0.17936184]
[1729701848454,0.152305,66014.0,66006.0,0.17633202]
[1729701848928,0.000822,66014.0,66006.0,0.17633202]
[1729701849158,0.151486,66013.0,66006.0,0.17633202]
[1729701849406,0.302971,66013.0,66005.0,0.02429302]
[1729701849659,0.151499,66007.0,66005.0,0.001644]
[1729701850131,0.01420842,66006.0,66005.0,0.001644]
[1729701850571,0.24800942,66006.0,66005.0,0.001644]
[1729701850780,0.27600942,66006.0,66005.0,0.001644]
[1729701851516,0.18870942,66006.0,66005.0,0.001644]
[1729701851729,0.03720842,66006.0,66005.0,0.001644]
[1729701851934,0.18870942,66006.0,66005.0,0.001644]
[1729701852134,0.19370942,66006.0,66005.0,0.001644]
[1729701853864,0.04220842,66006.0,66005.0,0.001644]
[1729701854096,0.19370942,66006.0,66005.0,0.001644]
[1729701855203,0.84101914,66006.0,66005.0,0.001644]
[1729701855428,0.61442277,66006.0,66005.0,0.001644]
[1729701855663,0.65963976,66006.0,66005.0,0.001644]
[1729701856101,0.66163976,66006.0,66005.0,0.001644]
[1729701856314,0.83797178,66006.0,66005.0,0.001644]
[1729701856520,0.74996224,66006.0,66005.0,0.001644]
[1729701856737,0.74796224,66006.0,66005.0,0.001644]
[1729701857400,0.68853683,66006.0,66005.0,0.001644]
[1729701857644,0.7027219,66006.0,66005.0,0.001644]
[1729701857871,0.74790624,66006.0,66005.0,0.001644]
[1729701858779,0.72490624,66006.0,66005.0,0.001644]
[1729701859064,1.16874207,66006.0,66005.0,0.001644]
[1729701859327,0.99041005,66006.0,66005.0,0.001644]
[1729701859559,1.05812529,66006.0,66005.0,0.001644]
[1729701860062,1.08312529,66006.0,66005.0,0.001644]
[1729701860297,1.02021942,66006.0,66005.0,0.001644]
[1729701860522,1.08793466,66006.0,66005.0,0.001644]
[1729701861298,1.01821942,66006.0,66005.0,0.001644]
[1729701861553,1.02021942,66006.0,66005.0,0.001644]
[1729701862296,1.01821942,66006.0,66005.0,0.001644]
[1729701862537,0.86771561,66006.0,66005.0,0.001644]
[1729701862786,0.85353054,66006.0,66005.0,0.001644]
[1729701863033,0.86768947,66006.0,66005.0,0.001644]
[1729701863534,0.86268947,66006.0,66005.0,0.001644]
[1729701864256,1.01015492,66006.0,66005.0,0.001644]
[1729701864491,0.96507268,66006.0,66005.0,0.001644]
[1729701864731,1.01014851,66006.0,66005.0,0.001644]
[1729701864963,0.96507268,66006.0,66005.0,0.001644]
[1729701866371,0.9650665,66006.0,66005.0,0.001644]
[1729701867368,0.81749895,66006.0,66005.0,0.001644]
[1729701869907,0.81749977,66006.0,66005.0,0.001644]
[1729701871399,0.86955254,66006.0,66005.0,0.001644]
[1729701874262,1.04588456,66006.0,66005.0,0.001644]
[1729701874739,0.86955254,66006.0,66005.0,0.001644]
[1729701874971,1.02005635,66006.0,66005.0,0.001644]
[1729701875889,1.01805635,66006.0,66005.0,0.001644]
[1729701876836,1.01806344,66006.0,66005.0,0.001644]
[1729701877922,0.86755963,66006.0,66005.0,0.001644]
[1729701878170,0.86955963,66006.0,66005.0,0.001644]